[Event "Titled Tuesday Blitz November 01 Early 2022"]
[White "Ronka, Erik"]
[Black "Tarasova, Viktoriya"]
[WhiteFideId "505080"]
[BlackFideId "4175840"]
[WhiteElo "2264"]
[BlackElo "2182"]
[Result "1-0"]
[Round "06"]
[TimeControl "180+1"]
[Date "2022.11.02"]
[WhiteClock "0:01:20"]
[BlackClock "0:00:02"]

1. e4 {[%clk 0:03:00]}  c5 {[%clk 0:02:59]} 2. Nf3 {[%clk 0:02:58]}  d6 {[%clk 0:02:59]} 3. Bb5+ {[%clk 0:02:54]}  Nd7 {[%clk 0:02:59]} 4. d4 {[%clk 0:02:54]}  cxd4 {[%clk 0:02:58]} 5. Qxd4 {[%clk 0:02:55]}  a6 {[%clk 0:02:59]} 6. Bxd7+ {[%clk 0:02:54]}  Bxd7 {[%clk 0:02:59]} 7. c4 {[%clk 0:02:55]}  e5 {[%clk 0:02:59]} 8. Qd3 {[%clk 0:02:55]}  h6 {[%clk 0:03:00]} 9. Nc3 {[%clk 0:02:55]}  Nf6 {[%clk 0:03:00]} 10. O-O {[%clk 0:02:52]}  Be7 {[%clk 0:02:59]} 11. a4 {[%clk 0:02:51]}  O-O {[%clk 0:02:59]} 12. b3 {[%clk 0:02:52]}  Bc6 {[%clk 0:02:47]} 13. Rd1 {[%clk 0:02:50]}  Nxe4 {[%clk 0:02:36]} 14. Nxe4 {[%clk 0:02:42]}  f5 {[%clk 0:02:36]} 15. Ned2 {[%clk 0:01:58]}  e4 {[%clk 0:02:32]} 16. Qe3 {[%clk 0:01:58]}  exf3 {[%clk 0:02:28]} 17. Nxf3 {[%clk 0:01:59]}  Bf6 {[%clk 0:02:28]} 18. Rb1 {[%clk 0:01:53]}  Re8 {[%clk 0:02:24]} 19. Qd2 {[%clk 0:01:51]}  Bxf3 {[%clk 0:01:47]} 20. gxf3 {[%clk 0:01:52]}  Be5 {[%clk 0:00:21]} 21. f4 {[%clk 0:01:48]}  Qh4 {[%clk 0:00:20]} 22. Qd5+ {[%clk 0:01:27]}  Kh8 {[%clk 0:00:20]} 23. Qf3 {[%clk 0:01:28]}  Bf6 {[%clk 0:00:13]} 24. Be3 {[%clk 0:01:27]}  Rad8 {[%clk 0:00:08]} 25. Rd5 {[%clk 0:01:27]}  g6 {[%clk 0:00:06]} 26. Rbd1 {[%clk 0:01:28]}  Be7 {[%clk 0:00:03]} 27. Bb6 {[%clk 0:01:19]}  Rd7 {[%clk 0:00:02]} 28. c5 {[%clk 0:01:20]} 1-0


[Site "https://www.chess.com"]

[Event "Titled Tuesday Blitz November 01 Early 2022"]
[White "Rosh Jain"]
[Black "Deev, Andrei"]
[WhiteFideId "25789465"]
[BlackFideId "4102690"]
[WhiteElo "2233"]
[BlackElo "2316"]
[Result "0-1"]
[Round "06"]
[TimeControl "180+1"]
[Date "2022.11.02"]
[WhiteClock "0:00:01"]
[BlackClock "0:00:06"]

1. e4 {[%clk 0:02:54]}  d6 {[%clk 0:03:00]} 2. d4 {[%clk 0:02:51]}  Nf6 {[%clk 0:02:59]} 3. Bd3 {[%clk 0:02:47]}  c5 {[%clk 0:02:56]} 4. Nf3 {[%clk 0:02:46]}  g6 {[%clk 0:02:52]} 5. e5 {[%clk 0:02:36]}  dxe5 {[%clk 0:02:23]} 6. dxe5 {[%clk 0:02:32]}  Nd5 {[%clk 0:02:17]} 7. Bg5 {[%clk 0:02:31]}  Nc6 {[%clk 0:02:11]} 8. O-O {[%clk 0:02:27]}  Bg7 {[%clk 0:02:10]} 9. c4 {[%clk 0:02:21]}  Ndb4 {[%clk 0:01:54]} 10. Be4 {[%clk 0:01:42]}  Qxd1 {[%clk 0:01:53]} 11. Rxd1 {[%clk 0:01:42]}  Nxe5 {[%clk 0:01:52]} 12. Nc3 {[%clk 0:01:40]}  Nxc4 {[%clk 0:01:33]} 13. a3 {[%clk 0:00:45]}  Bxc3 {[%clk 0:01:29]} 14. bxc3 {[%clk 0:00:41]}  Nc6 {[%clk 0:01:24]} 15. Bxc6+ {[%clk 0:00:38]}  bxc6 {[%clk 0:01:24]} 16. Re1 {[%clk 0:00:36]}  Be6 {[%clk 0:01:13]} 17. Ne5 {[%clk 0:00:33]}  Nxe5 {[%clk 0:01:12]} 18. Rxe5 {[%clk 0:00:34]}  c4 {[%clk 0:01:06]} 19. Be3 {[%clk 0:00:31]}  Bd5 {[%clk 0:00:56]} 20. Bd4 {[%clk 0:00:27]}  f6 {[%clk 0:00:52]} 21. Re3 {[%clk 0:00:23]}  Kf7 {[%clk 0:00:46]} 22. f4 {[%clk 0:00:20]}  Rhb8 {[%clk 0:00:43]} 23. Rae1 {[%clk 0:00:19]}  e6 {[%clk 0:00:43]} 24. g4 {[%clk 0:00:16]}  Rb3 {[%clk 0:00:34]} 25. g5 {[%clk 0:00:13]}  f5 {[%clk 0:00:28]} 26. Rh3 {[%clk 0:00:12]}  Kg8 {[%clk 0:00:27]} 27. Bc5 {[%clk 0:00:09]}  a5 {[%clk 0:00:23]} 28. Ree3 {[%clk 0:00:08]}  Rab8 {[%clk 0:00:23]} 29. Bd6 {[%clk 0:00:07]}  Rb1+ {[%clk 0:00:17]} 30. Kf2 {[%clk 0:00:06]}  R8b2+ {[%clk 0:00:18]} 31. Re2 {[%clk 0:00:05]}  Rb3 {[%clk 0:00:16]} 32. Ree3 {[%clk 0:00:03]}  Rc1 {[%clk 0:00:11]} 33. Bc5 {[%clk 0:00:01]}  Be4 {[%clk 0:00:11]} 34. Re2 {[%clk 0:00:01]}  Rcxc3 {[%clk 0:00:09]} 35. Rd2 {[%clk 0:00:01]}  Rxh3 {[%clk 0:00:07]} 36. Rd8+ {[%clk 0:00:01]}  Kf7 {[%clk 0:00:06]} 0-1


[Site "https://www.chess.com"]

[Event "Titled Tuesday Blitz November 01 Early 2022"]
[White "Sanchez, Robert"]
[Black "Migot, Tangi"]
[WhiteFideId "2034360"]
[BlackFideId "662445"]
[WhiteElo "2403"]
[BlackElo "2581"]
[Result "0-1"]
[Round "06"]
[TimeControl "180+1"]
[Date "2022.11.02"]
[WhiteClock "0:00:27"]
[BlackClock "0:00:38"]

1. Nf3 {[%clk 0:03:00]}  e6 {[%clk 0:03:00]} 2. e3 {[%clk 0:02:58]}  d5 {[%clk 0:03:01]} 3. c4 {[%clk 0:02:58]}  c6 {[%clk 0:03:01]} 4. Nc3 {[%clk 0:02:58]}  Bd6 {[%clk 0:03:01]} 5. d4 {[%clk 0:02:58]}  Nd7 {[%clk 0:02:59]} 6. Bd3 {[%clk 0:02:56]}  f5 {[%clk 0:02:59]} 7. b3 {[%clk 0:02:48]}  Ngf6 {[%clk 0:02:59]} 8. Bb2 {[%clk 0:02:48]}  O-O {[%clk 0:02:59]} 9. O-O {[%clk 0:02:47]}  Qe7 {[%clk 0:02:59]} 10. Nd2 {[%clk 0:02:43]}  Bxh2+ {[%clk 0:02:45]} 11. Kxh2 {[%clk 0:02:43]}  Ng4+ {[%clk 0:02:45]} 12. Kg1 {[%clk 0:02:43]}  Qg5 {[%clk 0:02:40]} 13. Qf3 {[%clk 0:02:38]}  Rf6 {[%clk 0:02:36]} 14. Qg3 {[%clk 0:02:31]}  Rh6 {[%clk 0:02:22]} 15. Nf3 {[%clk 0:02:24]}  Qh5 {[%clk 0:02:20]} 16. Qh3 {[%clk 0:02:24]}  Qg6 {[%clk 0:02:13]} 17. Qg3 {[%clk 0:02:20]}  Rh5 {[%clk 0:02:08]} 18. Rfe1 {[%clk 0:01:50]}  Qh6 {[%clk 0:01:58]} 19. Kf1 {[%clk 0:01:49]}  Ndf6 {[%clk 0:01:54]} 20. Ke2 {[%clk 0:01:35]}  Bd7 {[%clk 0:01:46]} 21. Kd2 {[%clk 0:01:14]}  dxc4 {[%clk 0:01:26]} 22. Bxc4 {[%clk 0:01:04]}  b5 {[%clk 0:01:24]} 23. Bd3 {[%clk 0:01:02]}  a5 {[%clk 0:01:22]} 24. Ne2 {[%clk 0:00:52]}  g5 {[%clk 0:00:53]} 25. Qd6 {[%clk 0:00:35]}  Nxf2 {[%clk 0:00:39]} 26. Ne5 {[%clk 0:00:27]}  N2e4+ {[%clk 0:00:38]} 0-1


[Site "https://www.chess.com"]

[Event "Titled Tuesday Blitz November 01 Early 2022"]
[White "Sernecki, Franciszek"]
[Black "Odegov, Artem"]
[WhiteFideId "1169297"]
[BlackFideId "34183644"]
[WhiteElo "2209"]
[BlackElo "2298"]
[Result "1/2-1/2"]
[Round "06"]
[TimeControl "180+1"]
[Date "2022.11.02"]
[WhiteClock "0:00:21"]
[BlackClock "0:00:03"]

1. c4 {[%clk 0:03:00]}  Nf6 {[%clk 0:02:56]} 2. Nc3 {[%clk 0:03:00]}  e6 {[%clk 0:02:57]} 3. e4 {[%clk 0:03:00]}  d5 {[%clk 0:02:57]} 4. cxd5 {[%clk 0:03:01]}  exd5 {[%clk 0:02:58]} 5. e5 {[%clk 0:03:02]}  d4 {[%clk 0:02:59]} 6. exf6 {[%clk 0:03:03]}  dxc3 {[%clk 0:02:59]} 7. Bb5+ {[%clk 0:03:03]}  c6 {[%clk 0:03:00]} 8. Qe2+ {[%clk 0:03:03]}  Be6 {[%clk 0:03:00]} 9. Bc4 {[%clk 0:03:04]}  cxd2+ {[%clk 0:03:01]} 10. Bxd2 {[%clk 0:03:04]}  Qxf6 {[%clk 0:03:01]} 11. Bc3 {[%clk 0:03:04]}  Qg6 {[%clk 0:03:01]} 12. Nf3 {[%clk 0:03:04]}  Nd7 {[%clk 0:02:51]} 13. O-O {[%clk 0:03:00]}  O-O-O {[%clk 0:02:50]} 14. Bxe6 {[%clk 0:02:59]}  Qxe6 {[%clk 0:02:51]} 15. Qxe6 {[%clk 0:02:59]}  fxe6 {[%clk 0:02:51]} 16. Rfe1 {[%clk 0:02:59]}  Bc5 {[%clk 0:02:47]} 17. Rxe6 {[%clk 0:02:51]}  Rhe8 {[%clk 0:02:46]} 18. Rae1 {[%clk 0:02:49]}  Rxe6 {[%clk 0:02:43]} 19. Rxe6 {[%clk 0:02:50]}  Nf8 {[%clk 0:02:44]} 20. Re1 {[%clk 0:02:47]}  Rd7 {[%clk 0:02:26]} 21. Ne5 {[%clk 0:02:21]}  Re7 {[%clk 0:02:22]} 22. g4 {[%clk 0:02:19]}  Ne6 {[%clk 0:02:14]} 23. Nd3 {[%clk 0:02:11]}  Bd6 {[%clk 0:02:09]} 24. h3 {[%clk 0:02:10]}  g6 {[%clk 0:01:44]} 25. Bf6 {[%clk 0:01:53]}  Re8 {[%clk 0:01:44]} 26. Be5 {[%clk 0:01:46]}  Bf8 {[%clk 0:01:29]} 27. Bc3 {[%clk 0:01:44]}  Bd6 {[%clk 0:01:22]} 28. Kg2 {[%clk 0:01:43]}  Nf4+ {[%clk 0:01:15]} 29. Nxf4 {[%clk 0:01:40]}  Rxe1 {[%clk 0:01:16]} 30. Bxe1 {[%clk 0:01:40]}  Bxf4 {[%clk 0:01:16]} 31. Bc3 {[%clk 0:01:23]}  Kd7 {[%clk 0:01:16]} 32. Kf3 {[%clk 0:01:24]}  Bd6 {[%clk 0:01:16]} 33. Ke4 {[%clk 0:01:25]}  Ke6 {[%clk 0:01:16]} 34. f4 {[%clk 0:01:25]}  a6 {[%clk 0:01:08]} 35. f5+ {[%clk 0:01:26]}  gxf5+ {[%clk 0:01:09]} 36. gxf5+ {[%clk 0:01:26]}  Kf7 {[%clk 0:01:10]} 37. Be5 {[%clk 0:01:22]}  Be7 {[%clk 0:01:06]} 38. b3 {[%clk 0:01:16]}  h5 {[%clk 0:01:04]} 39. Kf4 {[%clk 0:01:15]}  Bd8 {[%clk 0:01:03]} 40. Bd6 {[%clk 0:01:11]}  Bf6 {[%clk 0:01:02]} 41. Be5 {[%clk 0:01:09]}  Be7 {[%clk 0:01:03]} 42. Ke4 {[%clk 0:01:03]}  Bg5 {[%clk 0:00:56]} 43. Kd4 {[%clk 0:01:00]}  Be7 {[%clk 0:00:56]} 44. a4 {[%clk 0:00:59]}  Bf8 {[%clk 0:00:44]} 45. Ke4 {[%clk 0:00:45]}  Bc5 {[%clk 0:00:36]} 46. Kf4 {[%clk 0:00:45]}  Be7 {[%clk 0:00:33]} 47. Bc7 {[%clk 0:00:39]}  Bf6 {[%clk 0:00:27]} 48. Ke4 {[%clk 0:00:38]}  Bg7 {[%clk 0:00:15]} 49. a5 {[%clk 0:00:38]}  Bf6 {[%clk 0:00:15]} 50. Kd3 {[%clk 0:00:37]}  Be7 {[%clk 0:00:12]} 51. Ke4 {[%clk 0:00:30]}  Bf6 {[%clk 0:00:12]} 52. Bb6 {[%clk 0:00:28]}  Bc3 {[%clk 0:00:09]} 53. Kf4 {[%clk 0:00:24]}  Kf6 {[%clk 0:00:06]} 54. Bd8+ {[%clk 0:00:24]}  Kf7 {[%clk 0:00:06]} 55. Bc7 {[%clk 0:00:24]}  Bd4 {[%clk 0:00:05]} 56. Ke4 {[%clk 0:00:20]}  Bc3 {[%clk 0:00:05]} 57. Bd8 {[%clk 0:00:20]}  Ke8 {[%clk 0:00:03]} 58. Bb6 {[%clk 0:00:20]}  Kf7 {[%clk 0:00:04]} 59. Bc7 {[%clk 0:00:21]}  Bf6 {[%clk 0:00:03]} 1/2-1/2


[Site "https://www.chess.com"]

[Event "Titled Tuesday Blitz November 01 Early 2022"]
[White "Sipahioglu, Irmak"]
[Black "Osinovsky, Stepan"]
[WhiteFideId "6307205"]
[BlackFideId "4157354"]
[WhiteElo "2099"]
[BlackElo "2222"]
[Result "1-0"]
[Round "06"]
[TimeControl "180+1"]
[Date "2022.11.02"]
[WhiteClock "0:01:11"]
[BlackClock "0:00:02"]

1. d4 {[%clk 0:03:00]}  Nf6 {[%clk 0:03:00]} 2. c4 {[%clk 0:03:01]}  g6 {[%clk 0:03:00]} 3. Nc3 {[%clk 0:03:02]}  Bg7 {[%clk 0:03:01]} 4. e4 {[%clk 0:03:02]}  O-O {[%clk 0:03:02]} 5. Nf3 {[%clk 0:03:03]}  d6 {[%clk 0:03:02]} 6. Be2 {[%clk 0:03:04]}  Nbd7 {[%clk 0:03:02]} 7. O-O {[%clk 0:03:04]}  e5 {[%clk 0:03:02]} 8. Re1 {[%clk 0:03:05]}  Re8 {[%clk 0:03:02]} 9. Bf1 {[%clk 0:03:04]}  exd4 {[%clk 0:03:01]} 10. Nxd4 {[%clk 0:03:05]}  a5 {[%clk 0:03:01]} 11. f3 {[%clk 0:03:05]}  h5 {[%clk 0:02:53]} 12. Bg5 {[%clk 0:03:05]}  Ne5 {[%clk 0:02:50]} 13. Qd2 {[%clk 0:03:04]}  c6 {[%clk 0:02:49]} 14. Rad1 {[%clk 0:03:04]}  Qb6 {[%clk 0:02:45]} 15. Be3 {[%clk 0:02:59]}  Qc7 {[%clk 0:02:43]} 16. b3 {[%clk 0:02:50]}  Be6 {[%clk 0:02:25]} 17. h3 {[%clk 0:02:50]}  Rad8 {[%clk 0:02:15]} 18. Nde2 {[%clk 0:02:41]}  Bc8 {[%clk 0:01:10]} 19. f4 {[%clk 0:02:36]}  Ned7 {[%clk 0:01:01]} 20. Qxd6 {[%clk 0:02:22]}  Qxd6 {[%clk 0:01:01]} 21. Rxd6 {[%clk 0:02:23]}  Nxe4 {[%clk 0:01:02]} 22. Nxe4 {[%clk 0:02:18]}  Rxe4 {[%clk 0:01:03]} 23. Ng3 {[%clk 0:02:12]}  Re7 {[%clk 0:01:00]} 24. Bf2 {[%clk 0:01:55]}  Rde8 {[%clk 0:00:52]} 25. Rxe7 {[%clk 0:01:53]}  Rxe7 {[%clk 0:00:53]} 26. f5 {[%clk 0:01:49]}  Be5 {[%clk 0:00:50]} 27. Rd3 {[%clk 0:01:43]}  Nf6 {[%clk 0:00:46]} 28. fxg6 {[%clk 0:01:41]}  fxg6 {[%clk 0:00:46]} 29. Bc5 {[%clk 0:01:35]}  Rd7 {[%clk 0:00:44]} 30. Rf3 {[%clk 0:01:35]}  Kg7 {[%clk 0:00:43]} 31. Bd3 {[%clk 0:01:27]}  Bd4+ {[%clk 0:00:37]} 32. Bxd4 {[%clk 0:01:26]}  Rxd4 {[%clk 0:00:38]} 33. Kf2 {[%clk 0:01:25]}  c5 {[%clk 0:00:36]} 34. Ke3 {[%clk 0:01:24]}  b6 {[%clk 0:00:34]} 35. Ne2 {[%clk 0:01:24]}  Rd8 {[%clk 0:00:33]} 36. Nf4 {[%clk 0:01:25]}  Bb7 {[%clk 0:00:30]} 37. Ne6+ {[%clk 0:01:22]}  Kh6 {[%clk 0:00:16]} 38. Nxd8 {[%clk 0:01:23]}  Bxf3 {[%clk 0:00:15]} 39. Kxf3 {[%clk 0:01:23]}  Nd7 {[%clk 0:00:10]} 40. Ne6 {[%clk 0:01:24]}  g5 {[%clk 0:00:07]} 41. Ke4 {[%clk 0:01:22]}  h4 {[%clk 0:00:06]} 42. Kf5 {[%clk 0:01:22]}  Kh5 {[%clk 0:00:03]} 43. Be2+ {[%clk 0:01:19]}  Kh6 {[%clk 0:00:04]} 44. Nxg5 {[%clk 0:01:20]}  Nf8 {[%clk 0:00:02]} 45. Ne6 {[%clk 0:01:19]}  Ng6 {[%clk 0:00:01]} 46. Nc7 {[%clk 0:01:16]}  Ne7+ {[%clk 0:00:01]} 47. Ke6 {[%clk 0:01:17]}  Nc6 {[%clk 0:00:01]} 48. Nd5 {[%clk 0:01:18]}  Nd4+ {[%clk 0:00:01]} 49. Ke5 {[%clk 0:01:15]}  Nxe2 {[%clk 0:00:02]} 50. Nxb6 {[%clk 0:01:16]}  Kg5 {[%clk 0:00:01]} 51. Nd7 {[%clk 0:01:16]}  Nf4 {[%clk 0:00:01]} 52. Nxc5 {[%clk 0:01:14]}  Nxg2 {[%clk 0:00:02]} 53. Ne6+ {[%clk 0:01:14]}  Kg6 {[%clk 0:00:02]} 54. c5 {[%clk 0:01:14]}  Kf7 {[%clk 0:00:02]} 55. Kd6 {[%clk 0:01:11]} 1-0


[Site "https://www.chess.com"]

[Event "Titled Tuesday Blitz November 01 Early 2022"]
[White "Tharushi, T H D Niklesha"]
[Black "Cabezas Solano, David Alejandro"]
[WhiteFideId "9918264"]
[BlackFideId "6507522"]
[WhiteElo "1596"]
[BlackElo "2035"]
[Result "0-1"]
[Round "06"]
[TimeControl "180+1"]
[Date "2022.11.02"]
[WhiteClock "0:00:18"]
[BlackClock "0:00:05"]

1. e4 {[%clk 0:03:00]}  c5 {[%clk 0:02:59]} 2. Nf3 {[%clk 0:03:00]}  d6 {[%clk 0:02:58]} 3. d4 {[%clk 0:02:58]}  cxd4 {[%clk 0:02:59]} 4. Nxd4 {[%clk 0:02:57]}  Nf6 {[%clk 0:02:58]} 5. Nc3 {[%clk 0:02:58]}  a6 {[%clk 0:02:56]} 6. Bg5 {[%clk 0:02:57]}  e6 {[%clk 0:02:55]} 7. f4 {[%clk 0:02:57]}  Nbd7 {[%clk 0:02:54]} 8. Qf3 {[%clk 0:02:56]}  Qc7 {[%clk 0:02:53]} 9. O-O-O {[%clk 0:02:57]}  b5 {[%clk 0:02:52]} 10. g4 {[%clk 0:02:27]}  b4 {[%clk 0:02:43]} 11. Nb1 {[%clk 0:02:23]}  Bb7 {[%clk 0:02:42]} 12. Bd3 {[%clk 0:02:23]}  h6 {[%clk 0:02:11]} 13. Bxf6 {[%clk 0:02:21]}  Nxf6 {[%clk 0:02:10]} 14. g5 {[%clk 0:02:22]}  hxg5 {[%clk 0:01:41]} 15. fxg5 {[%clk 0:02:21]}  Nd7 {[%clk 0:01:41]} 16. g6 {[%clk 0:02:20]}  Ne5 {[%clk 0:01:33]} 17. gxf7+ {[%clk 0:02:20]}  Qxf7 {[%clk 0:01:28]} 18. Qxf7+ {[%clk 0:02:18]}  Kxf7 {[%clk 0:01:27]} 19. Nd2 {[%clk 0:01:56]}  Be7 {[%clk 0:01:18]} 20. Kb1 {[%clk 0:01:48]}  Rh3 {[%clk 0:01:09]} 21. Bf1 {[%clk 0:01:40]}  Rh6 {[%clk 0:01:02]} 22. Bg2 {[%clk 0:01:31]}  Rah8 {[%clk 0:01:01]} 23. Rhf1+ {[%clk 0:01:30]}  Ke8 {[%clk 0:00:59]} 24. h3 {[%clk 0:01:30]}  Kd7 {[%clk 0:00:57]} 25. N2f3 {[%clk 0:01:18]}  Nc4 {[%clk 0:00:47]} 26. Rfe1 {[%clk 0:01:02]}  Rg6 {[%clk 0:00:46]} 27. Re2 {[%clk 0:00:46]}  Bf6 {[%clk 0:00:37]} 28. b3 {[%clk 0:00:43]}  Rxg2 {[%clk 0:00:30]} 29. Rxg2 {[%clk 0:00:36]}  Ne3 {[%clk 0:00:30]} 30. Rgd2 {[%clk 0:00:31]}  Nxd1 {[%clk 0:00:29]} 31. Rxd1 {[%clk 0:00:32]}  Bxe4 {[%clk 0:00:28]} 32. Re1 {[%clk 0:00:30]}  Bxf3 {[%clk 0:00:25]} 33. Nxf3 {[%clk 0:00:30]}  Rxh3 {[%clk 0:00:25]} 34. Re3 {[%clk 0:00:29]}  Rh1+ {[%clk 0:00:23]} 35. Re1 {[%clk 0:00:26]}  Rxe1+ {[%clk 0:00:23]} 36. Nxe1 {[%clk 0:00:26]}  g5 {[%clk 0:00:24]} 37. Kc1 {[%clk 0:00:26]}  g4 {[%clk 0:00:24]} 38. Ng2 {[%clk 0:00:26]}  Bg5+ {[%clk 0:00:24]} 39. Kd1 {[%clk 0:00:26]}  Kc6 {[%clk 0:00:24]} 40. Ke2 {[%clk 0:00:26]}  Kd5 {[%clk 0:00:23]} 41. Kd3 {[%clk 0:00:26]}  e5 {[%clk 0:00:22]} 42. c3 {[%clk 0:00:23]}  e4+ {[%clk 0:00:22]} 43. Kc2 {[%clk 0:00:21]}  bxc3 {[%clk 0:00:21]} 44. Kxc3 {[%clk 0:00:21]}  Ke5 {[%clk 0:00:22]} 45. a4 {[%clk 0:00:20]}  d5 {[%clk 0:00:22]} 46. b4 {[%clk 0:00:21]}  d4+ {[%clk 0:00:22]} 47. Kc4 {[%clk 0:00:21]}  d3 {[%clk 0:00:20]} 48. Kc3 {[%clk 0:00:21]}  d2 {[%clk 0:00:18]} 49. Kc2 {[%clk 0:00:21]}  Kd4 {[%clk 0:00:18]} 50. b5 {[%clk 0:00:21]}  axb5 {[%clk 0:00:17]} 51. axb5 {[%clk 0:00:15]}  Kc5 {[%clk 0:00:17]} 52. b6 {[%clk 0:00:16]}  Kxb6 {[%clk 0:00:16]} 53. Kd1 {[%clk 0:00:17]}  Kc5 {[%clk 0:00:15]} 54. Ke2 {[%clk 0:00:17]}  Kd4 {[%clk 0:00:15]} 55. Kd1 {[%clk 0:00:18]}  g3 {[%clk 0:00:11]} 56. Ke2 {[%clk 0:00:18]}  e3 {[%clk 0:00:07]} 57. Kd1 {[%clk 0:00:18]}  Ke4 {[%clk 0:00:05]} 58. Ke2 {[%clk 0:00:18]}  Bh6 {[%clk 0:00:05]} 59. Kd1 {[%clk 0:00:18]}  Kf3 {[%clk 0:00:05]} 60. Nh4+ {[%clk 0:00:18]}  Kf2 {[%clk 0:00:06]} 61. Kc2 {[%clk 0:00:16]}  e2 {[%clk 0:00:06]} 62. Kd3 {[%clk 0:00:16]}  d1=Q+ {[%clk 0:00:07]} 63. Ke4 {[%clk 0:00:15]}  e1=Q+ {[%clk 0:00:06]} 64. Kf5 {[%clk 0:00:16]}  Qd5+ {[%clk 0:00:06]} 65. Kg6 {[%clk 0:00:17]}  Qee6+ {[%clk 0:00:05]} 66. Kh7 {[%clk 0:00:17]}  Qdd7+ {[%clk 0:00:05]} 67. Kh8 {[%clk 0:00:18]}  Qee8# {[%clk 0:00:05]} 0-1


[Site "https://www.chess.com"]

[Event "Titled Tuesday Blitz November 01 Early 2022"]
[White "Toelly, Michael"]
[Black "Brueckner, Thomas"]
[WhiteFideId "1625330"]
[BlackFideId "4600452"]
[WhiteElo "2090"]
[BlackElo "2332"]
[Result "1-0"]
[Round "06"]
[TimeControl "180+1"]
[Date "2022.11.02"]
[WhiteClock "0:00:03"]
[BlackClock "0:00:01"]

1. e4 {[%clk 0:03:00]}  e5 {[%clk 0:02:59]} 2. Nf3 {[%clk 0:03:01]}  Nc6 {[%clk 0:02:59]} 3. Bc4 {[%clk 0:03:00]}  Nf6 {[%clk 0:02:58]} 4. Ng5 {[%clk 0:03:00]}  d5 {[%clk 0:02:58]} 5. exd5 {[%clk 0:03:00]}  Na5 {[%clk 0:02:59]} 6. Bb5+ {[%clk 0:03:01]}  c6 {[%clk 0:02:59]} 7. dxc6 {[%clk 0:03:01]}  bxc6 {[%clk 0:02:59]} 8. Qf3 {[%clk 0:03:01]}  cxb5 {[%clk 0:02:58]} 9. Qxa8 {[%clk 0:03:00]}  Be7 {[%clk 0:02:58]} 10. Qxa7 {[%clk 0:02:58]}  h6 {[%clk 0:02:22]} 11. Nf3 {[%clk 0:02:54]}  Nc6 {[%clk 0:02:22]} 12. Qa8 {[%clk 0:02:52]}  Qd7 {[%clk 0:02:18]} 13. a4 {[%clk 0:02:41]}  b4 {[%clk 0:02:08]} 14. d4 {[%clk 0:01:49]}  e4 {[%clk 0:02:04]} 15. Ne5 {[%clk 0:01:49]}  Nxe5 {[%clk 0:01:56]} 16. dxe5 {[%clk 0:01:49]}  Nd5 {[%clk 0:01:52]} 17. Nd2 {[%clk 0:01:46]}  O-O {[%clk 0:01:48]} 18. Nxe4 {[%clk 0:01:41]}  Bb7 {[%clk 0:01:45]} 19. Qa7 {[%clk 0:01:40]}  Qc6 {[%clk 0:01:31]} 20. f3 {[%clk 0:01:07]}  Ra8 {[%clk 0:01:13]} 21. Qf2 {[%clk 0:01:04]}  Ba6 {[%clk 0:01:13]} 22. Qd4 {[%clk 0:00:30]}  f5 {[%clk 0:01:01]} 23. exf6 {[%clk 0:00:29]}  Nxf6 {[%clk 0:01:01]} 24. Be3 {[%clk 0:00:18]}  Qxc2 {[%clk 0:00:53]} 25. Nxf6+ {[%clk 0:00:15]}  Bxf6 {[%clk 0:00:52]} 26. Qd2 {[%clk 0:00:13]}  Qc6 {[%clk 0:00:33]} 27. Rc1 {[%clk 0:00:11]}  Qe6 {[%clk 0:00:33]} 28. Kf2 {[%clk 0:00:11]}  Rd8 {[%clk 0:00:31]} 29. Qxb4 {[%clk 0:00:08]}  Rd3 {[%clk 0:00:20]} 30. Rhe1 {[%clk 0:00:08]}  Rb3 {[%clk 0:00:20]} 31. Qe4 {[%clk 0:00:02]}  Rxb2+ {[%clk 0:00:20]} 32. Kg3 {[%clk 0:00:03]}  Qd6+ {[%clk 0:00:16]} 33. Bf4 {[%clk 0:00:03]}  Qd7 {[%clk 0:00:02]} 34. Qe8+ {[%clk 0:00:02]}  Qxe8 {[%clk 0:00:02]} 35. Rxe8+ {[%clk 0:00:03]}  Kf7 {[%clk 0:00:02]} 36. Re4 {[%clk 0:00:02]}  Bd3 {[%clk 0:00:02]} 37. Rc7+ {[%clk 0:00:02]}  Kf8 {[%clk 0:00:01]} 38. Re3 {[%clk 0:00:03]} 1-0


[Site "https://www.chess.com"]

[Event "Titled Tuesday Blitz November 01 Early 2022"]
[White "Warchol, Kamil"]
[Black "Khamdamova, Afruza"]
[WhiteFideId "21858241"]
[BlackFideId "14210444"]
[WhiteElo "2001"]
[BlackElo "2018"]
[Result "0-1"]
[Round "06"]
[TimeControl "180+1"]
[Date "2022.11.02"]
[WhiteClock "0:00:02"]
[BlackClock "0:00:14"]

1. e4 {[%clk 0:03:00]}  e5 {[%clk 0:02:56]} 2. Nf3 {[%clk 0:02:54]}  Nf6 {[%clk 0:02:54]} 3. Nxe5 {[%clk 0:02:40]}  d6 {[%clk 0:02:52]} 4. Nf3 {[%clk 0:02:34]}  Nxe4 {[%clk 0:02:51]} 5. d4 {[%clk 0:02:29]}  d5 {[%clk 0:02:50]} 6. Bd3 {[%clk 0:02:23]}  Be7 {[%clk 0:02:48]} 7. O-O {[%clk 0:02:19]}  Nc6 {[%clk 0:02:42]} 8. c3 {[%clk 0:02:02]}  O-O {[%clk 0:02:25]} 9. Nfd2 {[%clk 0:01:35]}  Bf5 {[%clk 0:01:44]} 10. Qf3 {[%clk 0:01:27]}  Nxd2 {[%clk 0:01:22]} 11. Qxf5 {[%clk 0:01:12]}  g6 {[%clk 0:01:20]} 12. Qh3 {[%clk 0:00:56]}  Nxf1 {[%clk 0:01:15]} 13. Kxf1 {[%clk 0:00:57]}  Bg5 {[%clk 0:00:57]} 14. Nd2 {[%clk 0:00:49]}  Qf6 {[%clk 0:00:49]} 15. Qg3 {[%clk 0:00:44]}  Bf4 {[%clk 0:00:48]} 16. Qf3 {[%clk 0:00:33]}  Kg7 {[%clk 0:00:46]} 17. g3 {[%clk 0:00:30]}  Bxd2 {[%clk 0:00:45]} 18. Qxf6+ {[%clk 0:00:29]}  Kxf6 {[%clk 0:00:45]} 19. Bxd2 {[%clk 0:00:30]}  Rae8 {[%clk 0:00:45]} 20. Bf4 {[%clk 0:00:29]}  Re7 {[%clk 0:00:41]} 21. h4 {[%clk 0:00:29]}  Kg7 {[%clk 0:00:40]} 22. b4 {[%clk 0:00:26]}  a6 {[%clk 0:00:39]} 23. a4 {[%clk 0:00:26]}  f6 {[%clk 0:00:35]} 24. b5 {[%clk 0:00:12]}  axb5 {[%clk 0:00:35]} 25. axb5 {[%clk 0:00:13]}  Nd8 {[%clk 0:00:35]} 26. Ra7 {[%clk 0:00:09]}  h6 {[%clk 0:00:29]} 27. b6 {[%clk 0:00:06]}  cxb6 {[%clk 0:00:27]} 28. Bd6 {[%clk 0:00:06]}  Rfe8 {[%clk 0:00:25]} 29. Bxe7 {[%clk 0:00:05]}  Rxe7 {[%clk 0:00:25]} 30. Bb5 {[%clk 0:00:05]}  Kf7 {[%clk 0:00:21]} 31. c4 {[%clk 0:00:03]}  dxc4 {[%clk 0:00:19]} 32. Bxc4+ {[%clk 0:00:04]}  Ke8 {[%clk 0:00:18]} 33. d5 {[%clk 0:00:05]}  g5 {[%clk 0:00:17]} 34. Bb5+ {[%clk 0:00:04]}  Kf7 {[%clk 0:00:16]} 35. d6 {[%clk 0:00:04]}  Re5 {[%clk 0:00:15]} 36. Bc4+ {[%clk 0:00:03]}  Ke8 {[%clk 0:00:14]} 37. Ra8 {[%clk 0:00:02]}  Rc5 {[%clk 0:00:14]} 0-1


[Site "https://www.chess.com"]